Cogmind - Beta 9.3 *** ADVENTURER MODE // 2019.12.31 @ 16:27:21 Player: ditdatdave Result: Smashed by cave-in Performance ------------- Evolutions (1) 500 Regions Visited (3) 600 Robots Destroyed (38) 190 Value Destroyed (921) 921 Prototype IDs (4) 80 Alien Tech Used (0) 0 Bonus (275) 275 TOTAL SCORE: 2566 Bonus ------- Follower Combat Kills 275 Cogmind --------- Core Integrity 0/400 Matter 270/300 Energy 278/280 System Corruption 11% Temperature Cool (1) Movement Walking (150) Ox1 Location -9/Storage Parts ------- > --- POWER (1) -------- Cooled Ion Engine > --- PROPULSION (3) --- Improved Aluminum Leg > --- UTILITY (3) ------ Medium Storage Unit Light Armor Plating > --- WEAPON (2) ------- Improved Assault Rifle > --- INVENTORY (8) ---- Improved Ion Engine Improved Ion Engine Aluminum Leg Aluminum Leg Improved Targeting Computer Drone Bay (2/2) Drone Bay (2/2) Particle Cannon Peak State ------------ > --- POWER ------------ Improved Ion Engine > --- PROPULSION ------- Aluminum Leg Aluminum Leg Aluminum Leg > --- UTILITY ---------- Small Storage Unit Signal Interpreter Light Armor Plating > --- WEAPON ----------- Improved Lightning Gun Mini Assault Cannon > --- INVENTORY -------- Ion Engine Aluminum Leg Aluminum Leg Improved Targeting Computer Light Assault Rifle Mini Grenade Launcher [Rating: 19] Favorites ----------- Power Ion Engine Engine Ion Engine Propulsion Aluminum Leg Leg Aluminum Leg Utility Signal Interpreter Storage Small Storage Unit Processor Signal Interpreter Protection Light Armor Plating Weapon Mini Assault Cannon Energy Gun Medium Laser Energy Cannon Light EM Pulse Cannon Ballistic Gun Light Assault Rifle Ballistic Cannon Mini Assault Cannon Launcher Mini Grenade Launcher Build | -11 -10 -9 -9 ------- Run | Scr Mat Mat Sto Slots Evolved 2 | . . 2 . Power . | . . . . Propulsion 1 | . . 1 . Utility 1 | . . 1 . Weapon . | . . . . Parts Attached 45 | 7 5 9 24 Power 7 | 1 2 1 3 Engine 7 | 1 2 1 3 Core . | . . . . Reactor . | . . . . Propulsion 10 | 2 1 2 5 Treads . | . . . . Leg 10 | 2 1 2 5 Wheel . | . . . . Hover . | . . . . Flight . | . . . . Utility 8 | 2 2 2 2 Device . | . . . . Storage 5 | 2 1 1 1 Processor 1 | . 1 . . Hackware . | . . . . Protection 2 | . . 1 1 Artifact . | . . . . Weapon 20 | 2 . 4 14 Energy Gun 5 | . . 2 3 Energy Cannon 2 | . . . 2 Ballistic Gun 7 | 2 . 1 4 Ballistic Cannon 2 | . . . 2 Launcher 4 | . . 1 3 Special Weapon . | . . . . Impact Weapon . | . . . . Slashing Weapon . | . . . . Piercing Weapon . | . . . . Special Melee Weapon . | . . . . Unidentified Prototypes 4 | . . . 4 Parts Lost 7 | . . 1 6 Power . | . . . . Propulsion 2 | . . . 2 Utility 2 | . . . 2 Weapon 3 | . . 1 2 Highest Loss Streak 4 | . . 1 4 Average Slot Usage (%) 99 | . 99 97 99 Engine 11 | . 13 11 11 Leg 31 | . 28 33 33 Storage 13 | . 20 12 11 Processor 10 | . 7 11 10 Protection 7 | . . 7 10 Energy Gun 4 | . . 17 4 Energy Cannon 1 | . . . 2 Ballistic Gun 11 | . 28 3 6 Ballistic Cannon 4 | . . . 6 Launcher 1 | . . . 1 Naked Turns . | . . . . Heaviest Build 25 | 14 20 20 25 Greatest Support 36 | 20 20 30 36 Greatest Overweight (x) 1 | . . . 1 Average Overweight (x) . | . . . . Largest Inventory Capacity 10 | 8 10 10 8 Average Capacity 6 | 6 8 6 6 Most Carried 8 | 2 8 7 8 Average Carried 6 | 1 5 5 6 Final Capacity 8 | 8 8 6 8 Final Carried 8 | 2 8 6 8 Class Distribution -------------------- 60% | Scavenger-Mutant 37% | Mutant Dominant Class ---------------- Mutant | -10/Materials Scavenger-Mutant | -9/Materials Scavenger-Mutant | -9/Storage Resources | -11 -10 -9 -9 ----------- Run | Scr Mat Mat Sto Matter Collected 1129 | 278 194 131 526 Remotely . | . . . . Salvage Created 1504 | 89 547 259 609 Parts 82 | 4 26 14 38 Haulers Intercepted 1 | . . . 1 Recyclers Shooed 9 | . 6 . 3 Parts Field Recycled . | . . . . Retrieved Matter . | . . . . Parts Self-Destructed . | . . . . Prevented . | . . . . Kills | -11 -10 -9 -9 ------- Run | Scr Mat Mat Sto Combat Hostiles Destroyed 26 | . 6 6 14 Guns 14 | . 6 3 5 Cannons 6 | . . . 6 AOE 6 | . . 3 3 Classes Destroyed 8 | 1 3 2 2 Worker 2 | . 1 1 . Hauler 1 | . . . 1 Recycler 6 | 1 3 1 1 Operator 1 | . . . 1 Watcher 2 | . 2 . . Swarmer 9 | . . 3 6 Grunt 8 | . 6 1 1 Sentry 9 | . . 2 7 Best Kill Streak 4 | 1 4 4 4 Combat Bots Only 4 | . 2 3 4 Max Kills in Single Turn 3 | 1 1 2 3 Gunslinging . | . . . . Exploded 3 | . . 1 3 Melee . | . . . . Uniques/NPCs Destroyed . | . . . . Combat | -11 -10 -9 -9 -------- Run | Scr Mat Mat Sto Damage Taken 2098 | . 293 282 1523 Core 477 | . 60 50 367 Absorbed by Shields . | . . . . Core Remaining (%) 88 | 100 76 . . Volleys Fired 101 | 2 36 12 51 Largest 2 | 2 2 2 2 Hottest 121 | 40 40 100 121 Shots Fired 189 | 4 72 22 91 Gun 137 | 4 72 18 43 Cannon 38 | . . . 38 Launcher 14 | . . 4 10 Special . | . . . . Kinetic 134 | 4 72 2 56 Thermal 33 | . . 16 17 Explosive 14 | . . 4 10 Electromagnetic 8 | . . . 8 Robot Hit Streak 25 | 3 25 19 21 Robot Miss Streak 3 | . 2 1 3 Penetration Max . | . . . . Secondary Targets 1 | . 1 . . Max Gunslinging Chain 1 | . 1 . . Shots Hit Robots 141 | 3 59 19 60 Core Hits 80 | 2 24 13 41 Critical Hits 3 | . 2 . 1 Critical Kills 1 | . 1 . . Critical Parts Destroyed 1 | . 1 . . Melee Attacks . | . . . . Impact . | . . . . Slashing . | . . . . Piercing . | . . . . Sneak Attacks . | . . . . Combat Hostiles . | . . . . Follow-up Attacks . | . . . . Damage Inflicted 2400 | 33 642 549 1176 Guns 1314 | 33 642 211 428 Cannons 597 | . . . 597 Explosions 429 | . . 326 103 Melee . | . . . . Ramming 60 | . . 12 48 Kinetic 1541 | 33 642 9 857 Thermal 292 | . . 202 90 Explosive 429 | . . 326 103 Electromagnetic 78 | . . . 78 Impact . | . . . . Slashing . | . . . . Piercing . | . . . . Highest Corruption 11 | . . . 11 Average Corruption 2 | . . . 2 Corruption Purged . | . . . . Effects 12 | . . . 12 Message Errors 4 | . . . 4 Heat Flow Errors 3 | . . . 3 Energy Discharges 3 | . . . 3 Targeting Errors 2 | . . . 2 Overload Shots . | . . . . Overflow Damage 43 | . . 9 34 Projectiles 34 | . . . 34 Explosions 9 | . . 9 . Melee . | . . . . Knockbacks 2 | . . . 2 Impact 1 | . . . 1 Kinetic 1 | . . . 1 Secondary . | . . . . Self-Inflicted Damage 36 | . . 6 30 Shots 1 | . . . 1 Rammed 3 | . . 1 2 Targets Rammed 15 | . . 1 14 Kicked 12 | . . . 12 Crushed . | . . . . Highest Temperature 321 | . 13 147 321 Average Temperature 63 | . 7 56 71 Received Heat Transfer 513 | . 222 96 195 Siege Activations . | . . . . Robots Corrupted . | . . . . Combat Hostiles . | . . . . Parts Fried . | . . . . Impact Corruptions . | . . . . Robots Melted . | . . . . Combat Hostiles . | . . . . Parts Melted 1 | . . 1 . Heat Transferred 707 | . . 592 115 Parts Sabotaged . | . . . . Parts Stolen . | . . . . Parts Stripped . | . . . . Power Chain Reactions . | . . . . Missiles Intercepted . | . . . . Alert | -11 -10 -9 -9 ------- Run | Scr Mat Mat Sto Peak Influence 512 | 5 205 184 512 Average Influence 127 | 3 82 130 153 Maximum Alert Level 2 | . 1 . 2 Low Security (%) 79 | 100 99 100 67 Level 1 18 | . . . 28 Level 2 2 | . . . 4 Level 3 . | . . . . Level 4 . | . . . . Level 5 . | . . . . High Security . | . . . . Max Security . | . . . . Squads Dispatched 7 | . 1 1 5 Investigation 3 | . 1 1 1 Extermination . | . . . . Reinforcement 1 | . . . 1 Assault . | . . . . Garrison 3 | . . . 3 Intercept . | . . . . Construction Impeded . | . . . . Haulers Reinforced . | . . . . Stealth | -11 -10 -9 -9 --------- Run | Scr Mat Mat Sto Distress Signals 4 | . 1 . 3 Communications Jammed . | . . . . Distress Signals . | . . . . Times Spotted 46 | . 10 9 27 Peak Tracking Total 6 | . 5 6 5 Tactical Retreats 1 | . 1 . . Traps | -11 -10 -9 -9 ------- Run | Scr Mat Mat Sto Traps Triggered 2 | . . 1 1 Indirectly . | . . . . Trap Hack Attempts . | . . . . Triggered . | . . . . Disarmed 4 | . . . 4 Reprogrammed . | . . . . Reused . | . . . . Traps Extracted . | . . . . Installed . | . . . . Triggered . | . . . . Machines | -11 -10 -9 -9 ---------- Run | Scr Mat Mat Sto Machines Disabled 4 | . 1 . 3 Max in Single Turn 1 | . 1 . 1 Garrison Access 1 | . . . 1 Machines Sabotaged . | . . . . Garrisons Compromised . | . . . . Overloaded Fab Kills . | . . . . Fab Network Shutdowns . | . . . . Hacking | -11 -10 -9 -9 --------- Run | Scr Mat Mat Sto Machines Accessed 12 | . 2 . 10 Terminals 11 | . 2 . 9 Fabricators . | . . . . Repair Stations . | . . . . Recycling Units . | . . . . Scanalyzers . | . . . . Garrison Access 1 | . . . 1 Total Hacks 24 | . 4 . 20 Successful 16 | . 2 . 14 Failed 8 | . 2 . 6 Catastrophic 2 | . 1 . 1 Database Lockouts . | . . . . Manual 1 | . . . 1 Terminals 23 | . 4 . 19 Fabricators . | . . . . Repair Stations . | . . . . Recycling Units . | . . . . Scanalyzers . | . . . . Garrison Access 1 | . . . 1 Terminal Hacks 15 | . 2 . 13 Record 3 | . . . 3 Part Schematic 2 | . . . 2 Open Door 2 | . . . 2 Branch Access Points 1 | . . . 1 Garrison Index 1 | . . . 1 Alert Level 1 | . 1 . . Unreport Threat 1 | . . . 1 Locate Traps 2 | . . . 2 Disarm Traps 1 | . . . 1 Reinforcement Status 1 | . 1 . . Fabricator Hacks . | . . . . Repair Station Hacks . | . . . . Recycling Unit Hacks . | . . . . Scanalyzer . | . . . . Garrison Access Hacks 1 | . . . 1 Seal Access 1 | . . . 1 Unauthorized Hacks . | . . . . Terminals . | . . . . Fabricators . | . . . . Repair Stations . | . . . . Recycling Units . | . . . . Scanalyzers . | . . . . Garrison Access . | . . . . Data Cores Recovered 1 | . . . 1 Used . | . . . . Hacking Detections 7 | . 2 . 5 Full Trace Events 3 | . 1 . 2 Feedback Events . | . . . . Feedback Blocked . | . . . . Robot Schematics Acquired . | . . . . Robots Built . | . . . . Matter . | . . . . Time . | . . . . Total Robot Build Rating . | . . . . Part Schematics Acquired 2 | . . . 2 Parts Built . | . . . . Matter . | . . . . Time . | . . . . Total Part Build Rating . | . . . . Parts Repaired . | . . . . Time . | . . . . Parts Recycled . | . . . . Recycled Matter . | . . . . Retrieved Matter . | . . . . Retrieved Components . | . . . . Parts Scanalyzed . | . . . . Part Schematics Acquired . | . . . . Parts Damaged . | . . . . Bothacking | -11 -10 -9 -9 ------------ Run | Scr Mat Mat Sto Used RIF Installer . | . . . . Robots Hacked . | . . . . Non-combat . | . . . . Combat . | . . . . Robot Hacks Applied . | . . . . Relay Couplers Released . | . . . . Robots Rewired . | . . . . Allies Hacked . | . . . . Hacks Repelled . | . . . . Allies | -11 -10 -9 -9 -------- Run | Scr Mat Mat Sto Total Allies 10 | . . . 10 Largest Group 10 | . . . 10 Highest-Rated Group 88 | . . . 88 Highest-Rated Ally 16 | . . . 16 Total Orders 1 | . . . 1 GUARD 1 | . . . 1 Ally Attacks 71 | . . . 71 Total Damage 743 | . . . 743 Kills 16 | . . . 16 Allies Corrupted . | . . . . Allies Melted . | . . . . Intel | -11 -10 -9 -9 ------- Run | Scr Mat Mat Sto Robot Analysis Total . | . . . . Derelict Logs Recovered . | . . . . Drone Launches . | . . . . Drone Recoveries . | . . . . Exploration | -11 -10 -9 -9 ------------- Run | Scr Mat Mat Sto Turns Passed 2696 | 118 624 250 1704 Spaces Moved 1897 | 87 420 169 1221 Core 6 | 6 . . . Treads . | . . . . Legs 1891 | 81 420 169 1221 Wheels . | . . . . Hover . | . . . . Flight . | . . . . Fastest Speed 50 | 50 120 120 120 Average Speed 119 | 115 120 120 120 Slowest Speed 150 | 120 120 120 150 Overloaded Moves . | . . . . Propulsion Burnouts . | . . . . Robots Hopped . | . . . . Cave-ins Triggered 4 | . . . 4 Exploration Rate (%) 37 | 5 44 20 79 Regions Visited 3 Branch Regions 1 Pre-discovered Areas . | . . . . Known Exits Taken 2 | . 1 1 . Unknown Exits Taken 1 | 1 . . . Scrap Searched . | . . . . Spaces Dug . | . . . . Terrain Destroyed 103 | . . 22 81 Melee . | . . . . Projectile 5 | . . . 5 AOE 98 | . . 22 76 Actions | -11 -10 -9 -9 --------- Run | Scr Mat Mat Sto Total 2137 | 97 476 194 1370 Wait 25 | . 2 . 23 Move 1891 | 86 419 168 1218 Hop . | . . . . Pick Up 19 | 2 8 . 9 Fast Attach 19 | 7 1 2 9 Attach 6 | . 1 3 2 Detach 3 | . 1 1 1 Swap 20 | . 3 4 13 Drop 29 | . 5 3 21 Fire 101 | 2 36 12 51 Melee . | . . . . Ram . | . . . . Kick 15 | . . 1 14 Crush . | . . . . Escape Stasis 2 | . . . 2 Rewire 7 | . . . 7 Trap . | . . . . Miscellaneous . | . . . . Route ------- -11/Scrapyard -10/Materials (discovered 3 exits: *Mat x2 / *Min) -9/Materials -9/Storage (discovered 2 exits: [*Mat] / Rec) History --------- Turn | Location | Event 22 | -11/Scrapyard | Discovered new exit (range 15) 119 | -11/Scrapyard | Entered Materials 305 | -10/Materials | Build established: Mutant 391 | -10/Materials | Discovered new exit (range 8) 404 | -10/Materials | Identified exit to Mines 449 | -10/Materials | Discovered new exit (range 7) 459 | -10/Materials | Identified exit to Materials 666 | -10/Materials | Discovered exit to Materials (range 14) 743 | -10/Materials | Entered another Materials area 743 | -9/Materials | Evolved 2 slots: Propulsion x1, Utility x1 906 | -9/Materials | Discovered new exit (range 6) 912 | -9/Materials | Identified exit to Storage 993 | -9/Materials | Entered Storage 1169 | -9/Storage | Build established: Scavenger-Mutant 1276 | -9/Storage | Assisted by bots powering up and referring to "LRC-V3" 1297 | -9/Storage | Garrison activated, responded to threat 1302 | -9/Storage | Identified exit to Recycling 1659 | -9/Storage | Discovered new exit (range 5) 1684 | -9/Storage | Crushed by falling debris 2678 | -9/Storage | Crushed by falling debris 2696 | -9/Storage | Crushed by falling debris 2697 | -9/Storage | System corruption reached 10% 2697 | -9/Storage | Crushed by falling debris 2697 | -9/Storage | Smashed by cave-in Last Messages --------------- The unstable cave ceiling collapses. U-05 Engineer lays Concrete. U-05 Engineer builds a Door. The unstable cave ceiling collapses. Crushed by falling debris. Signal Interpreter destroyed. System corrupted by crushing effect (+3). U-05 Engineer lays Concrete. U-05 Engineer builds a Wall. U-05 Engineer lays Concrete. U-05 Engineer builds a Wall. The unstable cave ceiling collapses. Crushed by falling debris. Mni. Grenade Launcher destroyed. System corrupted by crushing effect (+3). Aluminum Leg destroyed. System corrupted by crushing effect (+3). Imp. Aluminum Leg destroyed. The unstable cave ceiling collapses. Crushed by falling debris. Map ----- +----------------------------------------------------+ | | | | | | | | | | | | | | | | | | | | | | | | | | | | | | | ?????????????????????????????????????????? | | ?????????????????????????????????????????? | | ?????????????????????????????????????????? | | ?????????????????????????????????????????# | | ????#####????????????????????????????????# | | ????#===#???????????????????????????????## | | ????#===#???????????????????????????????+ | | ???##" "#???????????????????????????????# | | ???#T #?????#######??????#####??????### | | ???###+###????# # #??????#"""#??????#"" | | ?????# #????## @ #?????##"Y"#####??#"T | | ?????# #?????# ##???### ! #??#"" | | ?????# #???>?# ##???#"" """ ###### | | ?????## ##?????# #???#"" """ + | | ??????# #??#"""" ##???#"T """ # | | ??????# #??# #????#"" # | | ???#### #?## ##????#"" """ # | | #### ## #?# # ########## """ # %% | | #! =!# #?## # # """ %+% ###+ | | # */ #?## + """""" ## # ## | | # """ # #??## # ][ [" ###########%%## | | # """ # ###?# # [[ [" # %%##### % # | | # """ # #?# # """"" + %%% % # | | # + #?# # # T % % # | | # # #?# # # %##### % # | | # !!!# #?# # ## ##???##%### | | # !!!# #?# ############ #######+##### | | # !!!# #?# #??????????# ##T # ! | | # # #?# #???######?# # # """" | | # # ### ##### ### # #= ""??" | | ####### + #*""???" | | ??##### ## #%"???"" | | ?## # ###+###+## ### ####### "??"" | | ?#T + ## ## ####+####### """" | | ?## ### ## % ## # ## | +----------------------------------------------------+ Best States ------------- Heat Dissipation 28 Energy Generation 14 Energy Capacity 280 Matter Stores 300 Matter Capacity 300 Sight Range 16 Terrain Scan Density 10 Armor Coverage 150 Resistance: KI 20 Resistance: TH 20 Resistance: EX 20 Resistance: EM 20 Resistance: I 20 Resistance: S 20 Resistance: P 20 Evasion (%) 40 Offensive Hacking 10 Item Schematics ----------------- Imp. Targeting Computer | -9/Storage | Hacked Hrd. Light Armor Plating | -9/Storage | Hacked Robot Schematics ------------------ None Fabricated ------------ Nothing Alien Tech Used ----------------- None Achievements -------------- None Challenges ------------ None Game ------ Seed GaussTrapMatrix Manual? 0 Play Time 00:32:20 Cumulative 288.7 hours Start 2019.12.31 @ 12:53:24 End 2019.12.31 @ 16:27:21 Sessions 3 Manual Loads 0 Difficulty Adventurer Special Mode None Game No. 78 Rogue 50 Adventurer 28 Explorer 0 Win Type - Total 0 Types 0/0/0/0/0/0/0 Lore% 15 Gallery% 32 Achievement% 22 Wizard Run 0 Options --------- ASCII 1 Keyboard 1 Movement Arrows Keybinds 0 Fullscreen 2 Font 32/Terminus Map View 63x52 Tactical HUD 0 Map Filters NONE Filters NONE Steam 1 RUN: 1cef3f1c-20b1-474e-ba36-4d66f4be694d